bitfinex-derivatives/quotes_BNBF0:USTF0_20251027
["timestamp","ask_amount","ask_price","bid_price","bid_amount"]
[1761589995699,0.49439902,1147.0,1144.8,1.3032371]
[1761589995894,0.49439902,1146.9,1144.9,1.3032371]
[1761589996093,0.49439902,1146.8,1144.9,1.3032371]
[1761589996397,0.49439902,1146.7,1144.9,1.3032371]
[1761589996694,0.49439902,1146.6,1144.9,1.3032371]
[1761589996898,0.49439902,1146.5,1144.9,1.3032371]
[1761589997097,0.834574,1147.1,1144.9,1.3032371]
[1761589997296,0.49421915,1147.0,1144.9,1.3032371]
[1761589997497,0.49421915,1146.9,1144.9,1.3032371]
[1761589997696,0.49421915,1146.8,1144.9,1.3032371]
[1761589997994,0.49421915,1146.7,1144.9,1.3032371]
[1761589998194,0.49421915,1146.6,1144.9,1.3032371]
[1761589998399,1.4789787,1147.1,1145.0,1.3032371]
[1761589998594,0.49401667,1147.0,1145.0,1.3032371]
[1761589998794,0.49401667,1146.9,1145.0,1.3032371]
[1761589999095,0.49401667,1146.8,1145.0,1.3032371]
[1761589999293,0.49401667,1146.7,1145.0,1.3032371]
[1761589999496,0.49401667,1146.6,1145.0,1.3032371]
[1761589999697,0.4938937,1146.5,1145.0,1.3032371]
[1761589999895,0.64457714,1147.0,1145.0,1.3032371]
[1761590000093,0.49382107,1146.9,1145.0,1.3032371]
[1761590000292,0.49382107,1146.8,1145.0,1.3032371]
[1761590000495,0.49382107,1146.7,1145.0,1.3032371]
[1761590000795,0.49382107,1146.6,1144.9,1.3032371]
[1761590000994,0.49382107,1146.5,1144.9,1.3032371]
[1761590001195,0.83370202,1147.0,1144.9,1.3032371]
[1761590001396,1.63968542,1146.9,1144.9,1.3032371]
[1761590001596,0.49368542,1146.8,1144.9,1.3032371]
[1761590001798,1.146,1146.9,1144.9,1.3032371]
[1761590001799,0.49368542,1146.7,1144.9,1.3032371]
[1761590001996,0.49368542,1146.6,1144.9,1.3032371]
[1761590002200,0.49368542,1146.5,1144.9,1.3032371]
[1761590002500,1.146,1146.9,1144.9,1.3032371]
[1761590002698,0.49346232,1146.8,1144.9,1.3032371]
[1761590002901,0.49346232,1146.7,1144.9,1.3032371]
[1761590003100,0.49346232,1146.6,1144.9,1.3032371]
[1761590003301,1.146,1146.9,1144.9,1.3032371]
[1761590003597,0.49319098,1146.8,1144.9,1.3032371]
[1761590003795,0.49319098,1146.7,1144.9,1.3032371]
[1761590004000,0.49319098,1146.6,1144.9,1.3032371]
[1761590004200,1.146,1146.9,1144.9,1.3032371]
[1761590004501,0.49310633,1146.8,1144.9,1.3032371]
[1761590004802,0.49310633,1146.7,1144.9,1.3032371]
[1761590005100,0.49310633,1146.6,1144.9,1.3032371]
[1761590005297,1.146,1146.9,1144.9,1.3032371]
[1761590005496,0.49302735,1146.8,1144.9,1.3032371]
[1761590005701,0.49302735,1146.7,1144.9,1.3032371]
[1761590006004,0.49302735,1146.6,1144.8,1.3032371]
[1761590006205,1.146,1146.9,1144.8,1.3032371]
[1761590006402,0.4930225,1146.8,1144.8,1.3032371]
[1761590006603,0.4930225,1146.7,1144.8,1.3032371]
[1761590006803,0.4930225,1146.6,1144.8,1.3032371]
[1761590007007,1.146,1146.9,1144.8,1.3032371]
[1761590007305,0.49298704,1146.8,1144.8,1.3032371]
[1761590007508,0.49298704,1146.7,1144.8,1.3032371]
[1761590007803,0.49298704,1146.6,1144.8,1.3032371]
[1761590008007,1.146,1146.9,1144.8,1.3032371]
[1761590008206,0.49292567,1146.8,1144.8,1.3032371]
[1761590008404,0.49292567,1146.7,1144.8,1.3032371]
[1761590008608,0.49292567,1146.6,1144.8,1.3032371]
[1761590008808,1.146,1146.9,1144.8,1.3032371]
[1761590009109,0.49287615,1146.8,1144.9,1.3032371]
[1761590009408,1.146,1146.9,1144.8,1.3032371]
[1761590009604,0.4929649,1146.8,1144.8,1.3032371]
[1761590009805,1.146,1146.9,1144.8,1.3032371]
[1761590010004,0.49296471,1146.8,1144.8,1.3032371]
[1761590010208,1.146,1146.9,1144.8,1.3032371]
[1761590010804,0.49295386,1146.8,1144.8,1.3032371]
[1761590011105,1.146,1146.9,1144.8,1.3032371]
[1761590012506,0.64457714,1147.6,1144.8,1.3032371]
[1761590012709,0.4930254,1147.5,1144.8,1.3032371]
[1761590013004,0.4930254,1147.4,1144.8,1.3032371]
[1761590013209,0.4930254,1147.3,1144.8,1.3032371]
[1761590013408,0.4930254,1147.2,1144.8,1.3032371]
[1761590013710,0.4930254,1147.1,1144.8,1.3032371]
[1761590013904,0.4930254,1147.0,1144.8,1.3032371]
[1761590014107,0.4930254,1146.9,1144.8,1.3032371]
[1761590014304,0.83157528,1147.5,1144.8,1.3032371]
[1761590014608,0.49307998,1147.4,1144.9,1.3032371]
[1761590014808,0.49307998,1147.3,1144.9,1.3032371]
[1761590015006,0.49307998,1147.2,1144.9,1.3032371]
[1761590015309,0.49307998,1147.1,1144.9,1.3032371]
[1761590015607,0.49307998,1147.0,1144.9,1.3032371]
[1761590015804,0.49307998,1146.9,1144.9,1.3032371]
[1761590016008,0.64457714,1147.6,1144.9,1.3032371]
[1761590016209,1.3951098,1147.5,1144.9,1.3032371]
[1761590016508,0.4931098,1147.4,1145.5,1.3032371]
[1761590016804,0.4931098,1147.3,1145.5,1.3032371]
[1761590017008,0.4931098,1147.2,1145.5,1.3032371]
[1761590017208,0.4931098,1147.1,1145.5,1.3032371]
[1761590017406,1.54657714,1147.5,1145.5,1.3032371]
[1761590017605,0.49320874,1147.4,1145.5,1.3032371]
[1761590017806,0.49320874,1147.3,1145.5,1.3032371]
[1761590018009,0.49320874,1147.2,1145.5,1.3032371]
[1761590018207,0.49320874,1147.1,1145.5,1.3032371]
[1761590018409,0.64457714,1147.4,1145.7,1.3032371]
[1761590018609,0.49327542,1147.3,1145.8,1.3032371]
[1761590018809,0.49327542,1147.2,1145.8,1.3032371]
[1761590019105,1.54657714,1147.5,1145.8,1.3032371]
[1761590019306,0.4932896,1147.4,1145.8,1.3032371]
[1761590019506,0.4932896,1147.3,1145.8,1.3032371]
[1761590019706,0.4932896,1147.2,1145.8,1.3032371]
[1761590019908,1.54657714,1147.5,1145.8,1.3032371]
[1761590020206,0.49329991,1147.4,1145.8,1.3032371]
[1761590020421,0.49329991,1147.3,1145.8,1.3032371]
[1761590020613,0.49329991,1147.2,1145.8,1.3032371]
[1761590020811,0.49329991,1147.2,1145.0,2.1283265]
[1761590020812,1.54657714,1147.5,1145.7,1.3032371]
[1761590021011,0.49329493,1147.4,1145.7,1.3032371]
[1761590021207,0.49329493,1147.3,1145.7,1.3032371]
[1761590021409,0.49329493,1147.2,1145.7,1.3032371]
[1761590021614,1.54657714,1147.5,1145.7,1.3032371]
[1761590021814,0.49332241,1147.4,1145.7,1.3032371]
[1761590022014,0.49332241,1147.3,1145.7,1.3032371]
[1761590022214,0.49332241,1147.2,1145.7,1.3032371]
[1761590022514,1.54657714,1147.5,1145.7,1.3032371]
[1761590022710,0.49331338,1147.4,1145.7,1.3032371]
[1761590022912,0.49331338,1147.3,1145.7,1.3032371]
[1761590023111,0.49331338,1147.2,1145.7,1.3032371]
[1761590023411,0.49327736,1147.1,1145.6,1.3032371]
[1761590023614,1.54657714,1147.5,1145.6,1.3032371]
[1761590023813,0.49327053,1147.4,1145.6,1.3032371]
[1761590024014,0.49327053,1147.3,1145.6,1.3032371]
[1761590024216,0.49327053,1147.2,1145.6,1.3032371]
[1761590024416,0.49327053,1147.1,1145.6,1.3032371]
[1761590024616,1.54657714,1147.5,1145.6,1.3032371]
[1761590024818,0.49329966,1147.4,1145.6,1.3032371]
[1761590025019,0.49329966,1147.3,1145.6,1.3032371]
[1761590025318,0.49329966,1147.2,1145.5,1.3032371]
[1761590025518,0.49329966,1147.1,1145.5,1.3032371]
[1761590025813,0.49329966,1147.0,1145.3,1.3032371]
[1761590026015,0.49329966,1146.9,1145.3,1.3032371]
[1761590026315,0.64457714,1147.3,1145.3,1.3032371]
[1761590026514,0.4933261,1147.2,1145.3,1.3032371]
[1761590026818,0.4933261,1147.1,1145.3,1.3032371]
[1761590027118,0.4933261,1147.0,1145.3,1.3032371]
[1761590027418,0.4933261,1146.9,1145.3,1.3032371]
[1761590027619,0.64457714,1147.3,1145.3,1.3032371]
[1761590027914,0.49337424,1147.2,1145.3,1.3032371]
[1761590028119,0.49337424,1147.1,1145.3,1.3032371]
[1761590028419,0.49337424,1147.0,1145.3,1.3032371]
[1761590028719,0.49337424,1146.9,1145.3,1.3032371]
[1761590028919,0.64457714,1147.3,1145.3,1.3032371]
[1761590029218,0.49336335,1147.2,1145.3,1.3032371]
[1761590029519,0.49336335,1147.1,1145.3,1.3032371]
[1761590029715,0.49336335,1147.0,1145.3,1.3032371]
[1761590029921,0.49336335,1146.9,1145.3,1.3032371]
[1761590030120,0.64457714,1147.3,1145.3,1.3032371]
[1761590030320,0.49336038,1147.2,1145.3,1.3032371]
[1761590030520,0.49336038,1147.1,1145.3,1.3032371]
[1761590030719,0.49336038,1147.0,1145.3,1.3032371]
[1761590031018,0.49336038,1146.9,1145.1,1.3032371]
[1761590031218,0.49336038,1146.8,1145.2,1.3032371]
[1761590031417,0.49336038,1146.8,1144.7,0.15176393]
[1761590031418,0.49336038,1146.7,1145.1,1.3032371]
[1761590031620,0.64457714,1147.2,1145.1,1.3032371]
[1761590031818,0.49328183,1147.1,1145.1,1.3032371]
[1761590032018,0.49328183,1147.0,1145.1,1.3032371]
[1761590032321,0.49328183,1146.9,1145.1,1.3032371]
[1761590032522,0.49328183,1146.8,1145.1,1.3032371]
[1761590032719,0.49328183,1146.7,1145.1,1.3032371]
[1761590032923,0.64457714,1147.2,1145.1,1.3032371]
[1761590033121,0.49325888,1147.1,1145.1,1.3032371]
[1761590033322,0.49325888,1147.0,1145.1,1.3032371]
[1761590033524,0.49325888,1146.9,1145.1,1.3032371]
[1761590033724,0.49325888,1146.8,1145.1,1.3032371]
[1761590033921,0.49325888,1146.7,1145.1,1.3032371]
[1761590034123,0.64457714,1147.2,1145.1,1.3032371]
[1761590034322,0.49323385,1147.1,1145.1,1.3032371]
[1761590034521,0.49323385,1147.0,1145.1,1.3032371]
[1761590034722,0.49323385,1146.9,1145.1,1.3032371]
[1761590034922,0.49323385,1146.8,1145.1,1.3032371]
[1761590035124,0.49323385,1146.7,1145.1,1.3032371]
[1761590035421,0.64457714,1147.2,1145.1,1.3032371]
[1761590035725,0.49322165,1147.1,1145.1,1.3032371]
[1761590035922,0.49322165,1147.0,1145.0,1.3032371]
[1761590036225,0.49322165,1146.9,1145.0,1.3032371]
[1761590036425,0.49322165,1146.8,1145.0,1.3032371]
[1761590036630,0.49322165,1146.7,1145.0,1.3032371]
[1761590036824,0.64457714,1147.1,1145.0,1.3032371]
[1761590037024,0.49305137,1147.0,1145.0,1.3032371]
[1761590037224,0.49305137,1146.9,1145.0,1.3032371]
[1761590037427,0.49305137,1146.8,1145.0,1.3032371]
[1761590037624,0.49305137,1146.7,1145.0,1.3032371]
[1761590037824,0.83210913,1147.1,1145.0,1.3032371]
[1761590038123,0.49320973,1147.0,1145.0,1.3032371]
[1761590038324,0.49320973,1146.9,1145.0,1.3032371]
[1761590038625,0.49320973,1146.8,1145.0,1.3032371]
[1761590038828,0.49320973,1146.7,1145.0,1.3032371]
[1761590039027,0.64457714,1147.2,1145.0,1.3032371]
[1761590039228,0.49329194,1147.1,1145.0,1.3032371]
[1761590039523,0.49329194,1147.0,1145.0,1.3032371]
[1761590039728,0.49329194,1146.9,1145.0,1.3032371]
[1761590039927,0.49329194,1146.8,1145.0,1.3032371]
[1761590040130,0.49329194,1146.7,1145.0,1.3032371]
[1761590040327,0.83237539,1147.1,1145.0,1.3032371]
[1761590040531,0.49342712,1147.0,1145.1,1.3032371]
[1761590040732,0.49342712,1146.9,1145.1,1.3032371]
[1761590041028,0.49342712,1146.8,1145.2,1.3032371]
[1761590041232,0.64457714,1147.1,1145.4,1.3032371]
[1761590041530,0.49362714,1147.0,1145.4,1.3032371]
[1761590041734,0.49362714,1146.9,1145.4,1.3032371]
[1761590041930,0.49362714,1146.8,1145.4,1.3032371]
[1761590042129,0.64457714,1147.2,1145.4,1.3032371]
[1761590042331,0.49362317,1147.1,1145.5,1.3032371]
[1761590042630,0.49362317,1147.0,1145.5,1.3032371]
[1761590042831,0.49362317,1146.9,1145.5,1.3032371]
[1761590043029,0.64457714,1147.2,1145.5,1.3032371]
[1761590043234,0.49376409,1147.1,1145.5,1.3032371]
[1761590043434,0.49376409,1147.0,1145.5,1.3032371]
[1761590043631,0.49376409,1146.9,1145.5,1.3032371]
[1761590043834,0.49376409,1146.8,1145.5,1.3032371]
[1761590044137,0.64457714,1147.2,1145.5,1.3032371]
[1761590044437,0.49386551,1147.1,1145.5,1.3032371]
[1761590044634,0.49386551,1147.0,1145.5,1.3032371]
[1761590044835,0.49386551,1146.9,1145.5,1.3032371]
[1761590045038,0.49386551,1146.8,1145.5,1.3032371]
[1761590045238,0.64457714,1147.2,1145.5,1.3032371]
[1761590045536,0.49407356,1147.1,1145.5,1.3032371]
[1761590045733,0.49407356,1147.0,1145.5,1.3032371]
[1761590045938,0.49407356,1146.9,1145.3,1.3032371]
[1761590046138,0.49407356,1146.8,1145.3,1.3032371]
[1761590046335,0.64457714,1147.3,1145.3,1.3032371]
[1761590046640,0.49410788,1147.2,1145.3,1.3032371]
[1761590046938,0.64457714,1147.3,1145.3,1.3032371]
[1761590046939,0.49410788,1147.1,1145.3,1.3032371]
[1761590047138,0.49410788,1147.0,1145.3,1.3032371]
[1761590047335,0.49410788,1146.9,1145.3,1.3032371]
[1761590047538,0.49410788,1146.8,1145.3,1.3032371]
[1761590047737,0.64457714,1147.2,1145.3,1.3032371]
[1761590047940,0.49416543,1147.1,1145.3,1.3032371]
[1761590048137,0.49416543,1147.0,1145.3,1.3032371]
[1761590048436,0.49416543,1146.9,1145.3,1.3032371]
[1761590048638,0.49416543,1146.8,1145.2,1.3032371]
[1761590048842,0.49416543,1146.7,1145.2,1.3032371]
[1761590049045,0.4941404,1146.6,1145.3,1.3032371]
[1761590049241,0.64457714,1146.9,1145.4,1.3032371]
[1761590049438,1.13866066,1146.8,1145.3,1.3032371]
[1761590049742,0.49408352,1146.7,1145.3,1.3032371]
[1761590049942,0.49408352,1146.6,1145.2,1.3032371]
[1761590050143,0.49408352,1146.5,1145.2,1.3032371]
[1761590050338,0.64457714,1146.9,1145.2,1.3032371]
[1761590050540,0.49409936,1146.8,1145.2,1.3032371]
[1761590050745,0.49409936,1146.7,1145.0,1.3032371]
[1761590050945,0.49409936,1146.6,1145.0,1.3032371]
[1761590051142,0.49409936,1146.5,1145.0,1.3032371]
[1761590051442,0.64457714,1147.0,1145.0,1.3032371]
[1761590051644,0.49407808,1146.9,1145.0,1.3032371]
[1761590051846,0.49407808,1146.8,1145.0,1.3032371]
[1761590052146,0.49407808,1146.7,1145.0,1.3032371]
[1761590052345,0.49407808,1146.6,1145.0,1.3032371]
[1761590052645,0.49407808,1146.5,1145.0,1.3032371]
[1761590052842,0.64457714,1147.0,1145.0,1.3032371]
[1761590053146,0.49406303,1146.9,1145.0,1.3032371]
[1761590053345,0.49406303,1146.8,1145.0,1.3032371]
[1761590053541,0.49406303,1146.7,1145.0,1.3032371]
[1761590053846,0.49406303,1146.6,1145.0,1.3032371]
[1761590054045,0.49406303,1146.5,1145.0,1.3032371]
[1761590054243,0.64457714,1147.0,1145.0,1.3032371]
[1761590054443,0.4940338,1146.9,1145.0,1.3032371]
[1761590054644,0.4940338,1146.8,1145.0,1.3032371]
[1761590054842,0.4940338,1146.7,1144.9,1.3032371]
[1761590055047,0.4940338,1146.6,1144.9,1.3032371]
[1761590055247,0.4940338,1146.5,1144.9,1.3032371]
[1761590055447,0.64457714,1147.1,1145.1,1.3032371]
[1761590055644,0.49407702,1147.0,1145.2,1.3032371]
[1761590055944,0.49407702,1146.9,1145.2,1.3032371]
[1761590056150,0.49407702,1146.8,1145.2,1.3032371]
[1761590056449,0.49407702,1146.7,1145.2,1.3032371]
[1761590056644,0.83372957,1147.1,1145.2,1.3032371]
[1761590056850,0.49414228,1147.0,1145.2,1.3032371]
[1761590057048,0.49414228,1146.9,1145.2,1.3032371]
[1761590057249,0.49414228,1146.8,1145.2,1.3032371]
[1761590057446,0.49414228,1146.7,1145.2,1.3032371]
[1761590057749,0.64457714,1147.2,1145.2,1.3032371]
[1761590057947,0.49415142,1147.1,1145.2,1.3032371]
[1761590058147,0.49415142,1147.0,1145.2,1.3032371]
[1761590058345,0.49415142,1146.9,1145.2,1.3032371]
[1761590058545,0.49415142,1146.8,1145.2,1.3032371]
[1761590058845,0.49415142,1146.7,1145.2,1.3032371]
[1761590059046,0.64457714,1147.1,1145.2,1.3032371]
[1761590059245,0.49415082,1147.0,1145.2,1.3032371]
[1761590059450,0.49415082,1146.9,1145.2,1.3032371]
[1761590059648,0.49415082,1146.8,1145.2,1.3032371]
[1761590059848,0.49415082,1146.7,1145.2,1.3032371]
[1761590060049,0.49415082,1146.6,1145.2,1.3032371]
[1761590060247,0.64457714,1147.1,1145.3,1.3032371]
[1761590060450,0.49422856,1147.0,1145.4,1.3032371]
[1761590060648,0.49422856,1146.9,1145.4,1.3032371]
[1761590060852,0.49422856,1146.8,1145.3,1.3032371]
[1761590061049,0.64457714,1147.2,1145.3,1.3032371]
[1761590061352,0.49417199,1147.1,1145.3,1.3032371]
[1761590061649,0.49417199,1147.0,1145.4,1.3032371]
[1761590061847,0.49417199,1146.9,1145.4,1.3032371]
[1761590062052,0.64457714,1147.3,1145.4,1.3032371]
[1761590062251,0.49424444,1147.2,1145.4,1.3032371]
[1761590062450,0.49424444,1147.1,1145.4,1.3032371]
[1761590062647,0.49424444,1147.0,1145.4,1.3032371]
[1761590062950,0.49424444,1146.9,1145.4,1.3032371]
[1761590063148,0.64457714,1147.3,1145.4,1.3032371]
[1761590063349,0.49426198,1147.2,1145.4,1.3032371]
[1761590063549,0.49426198,1147.1,1145.4,1.3032371]
[1761590063850,0.49426198,1147.0,1145.4,1.3032371]
[1761590064054,0.49426198,1146.9,1145.4,1.3032371]
[1761590064350,0.64457714,1147.3,1145.4,1.3032371]
[1761590064550,0.49429769,1147.2,1145.4,1.3032371]
[1761590064751,0.49429769,1147.1,1145.4,1.3032371]
[1761590064950,0.49429769,1147.0,1145.4,1.3032371]
[1761590065254,0.49429769,1146.9,1145.4,1.3032371]
[1761590065548,0.64457714,1147.4,1145.4,1.3032371]
[1761590065754,0.4943382,1147.3,1145.4,1.3032371]
[1761590065952,0.4943382,1147.2,1145.4,1.3032371]
[1761590066150,0.4943382,1147.1,1145.4,1.3032371]
[1761590066351,0.4943382,1147.0,1145.4,1.3032371]
[1761590066553,0.4943382,1146.9,1145.4,1.3032371]
[1761590066854,1.47955629,1147.3,1145.5,1.3032371]
[1761590067051,0.49435048,1147.2,1145.5,1.3032371]
[1761590067351,0.49435048,1147.1,1145.5,1.3032371]
[1761590067654,0.49435048,1147.0,1145.5,1.3032371]
[1761590067950,0.49435048,1146.9,1145.5,1.3032371]
[1761590068150,0.64457714,1147.3,1145.5,1.3032371]
[1761590068453,0.49447658,1147.2,1145.4,1.3032371]
[1761590068650,0.49447658,1147.1,1145.4,1.3032371]
[1761590068850,0.49447658,1147.0,1145.4,1.3032371]
[1761590069054,0.49447658,1146.9,1145.4,1.3032371]
[1761590069354,0.49447658,1146.8,1145.4,1.3032371]
[1761590069554,0.64457714,1147.3,1145.4,1.3032371]
[1761590069850,1.13904823,1147.2,1145.3,1.3032371]
[1761590070053,0.49447109,1147.1,1145.3,1.3032371]
[1761590070251,0.49447109,1147.0,1145.2,1.3032371]
[1761590070452,0.49447109,1146.9,1145.2,1.3032371]
[1761590070651,0.64457714,1147.2,1145.2,1.3032371]
[1761590070652,0.49447109,1146.8,1145.2,1.3032371]
[1761590070853,0.49447109,1146.7,1145.3,1.3032371]
[1761590071054,0.64457714,1147.1,1145.3,1.3032371]
[1761590071254,0.49423841,1147.0,1145.3,1.3032371]
[1761590071551,0.49423841,1146.9,1145.3,1.3032371]
[1761590071750,0.49423841,1146.8,1145.3,1.3032371]
[1761590071956,0.49423841,1146.7,1145.3,1.3032371]
[1761590072253,0.64457714,1147.1,1145.3,1.3032371]
[1761590072451,0.49423524,1147.0,1145.3,1.3032371]
[1761590072753,0.49423524,1146.9,1145.3,1.3032371]
[1761590073054,1.49823524,1146.8,1145.3,1.3032371]
[1761590073251,0.49423524,1146.7,1145.3,1.3032371]
[1761590073455,1.004,1146.8,1145.3,1.3032371]
[1761590073751,0.49424508,1146.7,1145.3,1.3032371]
[1761590073955,1.004,1146.8,1145.3,1.3032371]
[1761590074255,0.49424496,1146.7,1145.3,1.3032371]
[1761590074452,1.004,1146.8,1145.3,1.3032371]
[1761590074755,0.49423069,1146.7,1145.3,1.3032371]
[1761590075051,1.004,1146.8,1145.3,1.3032371]
[1761590075255,0.49423111,1146.7,1145.3,1.3032371]
[1761590075556,1.004,1146.8,1145.3,1.3032371]
[1761590075755,0.49423035,1146.7,1145.3,1.3032371]
[1761590075953,0.49423035,1146.6,1145.2,1.3032371]
[1761590076157,1.004,1146.8,1145.2,1.3032371]
[1761590076355,0.49422326,1146.7,1145.2,1.3032371]
[1761590076557,0.49422326,1146.6,1145.2,1.3032371]
[1761590076857,1.004,1146.8,1145.2,1.3032371]
[1761590077157,0.49422994,1146.7,1145.2,1.3032371]
[1761590077357,1.004,1146.8,1145.2,1.3032371]
[1761590077657,0.49426477,1146.7,1145.2,1.3032371]
[1761590077854,1.004,1146.8,1145.2,1.3032371]
[1761590078156,0.49426435,1146.7,1145.2,1.3032371]
[1761590078354,1.004,1146.8,1145.3,1.3032371]
[1761590078557,0.49430228,1146.7,1145.3,1.3032371]
[1761590078759,1.004,1146.8,1145.3,1.3032371]
[1761590078957,0.49430228,1146.7,1145.3,1.3032371]
[1761590079155,1.004,1146.8,1145.3,1.3032371]
[1761590079454,0.49430228,1146.7,1145.3,1.3032371]
[1761590079657,1.004,1146.8,1145.3,1.3032371]
[1761590079854,0.49438396,1146.7,1145.2,1.3032371]
[1761590080058,1.004,1146.8,1145.2,1.3032371]
[1761590080258,0.49438413,1146.7,1145.2,1.3032371]
[1761590080453,1.004,1146.8,1145.2,1.3032371]
[1761590080658,0.49447418,1146.7,1145.3,1.3032371]
[1761590080860,0.49447418,1146.6,1145.2,1.3032371]
[1761590081159,1.004,1146.8,1145.2,1.3032371]
[1761590081460,0.49445215,1146.7,1145.2,1.3032371]
[1761590081656,0.49445215,1146.6,1145.2,1.3032371]
[1761590081861,1.004,1146.8,1145.2,1.3032371]
[1761590082061,0.49453898,1146.7,1145.1,1.3032371]
[1761590082259,0.49453898,1146.6,1145.1,1.3032371]
[1761590082462,1.004,1146.8,1145.2,1.3032371]
[1761590082758,0.49463281,1146.7,1145.2,1.3032371]
[1761590082962,0.49463281,1146.6,1145.2,1.3032371]
[1761590083262,1.004,1146.8,1145.2,1.3032371]
[1761590083459,0.49463844,1146.7,1145.2,1.3032371]
[1761590083658,0.49463844,1146.6,1145.2,1.3032371]
[1761590083961,1.004,1146.8,1145.2,1.3032371]
[1761590084159,0.49473296,1146.7,1145.2,1.3032371]
[1761590084360,0.49473296,1146.6,1145.3,1.3032371]
[1761590084558,1.004,1146.8,1145.3,1.3032371]
[1761590084763,0.4948015,1146.7,1145.3,1.3032371]
[1761590085059,0.4948015,1146.6,1145.3,1.3032371]
[1761590085262,1.004,1146.8,1145.3,1.3032371]
[1761590085562,0.49481906,1146.7,1145.3,1.3032371]
[1761590085858,0.49481906,1146.6,1145.3,1.3032371]
[1761590086161,0.49481906,1146.5,1145.3,1.3032371]
[1761590086358,1.004,1146.8,1145.3,1.3032371]
[1761590086558,0.49482822,1146.7,1145.3,1.3032371]
[1761590086757,1.004,1146.8,1145.3,1.3032371]
[1761590086758,0.49482822,1146.6,1145.3,1.3032371]
[1761590087058,0.49482822,1146.5,1145.3,1.3032371]
[1761590087359,0.49482822,1146.5,1144.7,0.15176393]
[1761590087360,1.004,1146.8,1145.2,1.3032371]
[1761590087562,0.49481796,1146.7,1145.2,1.3032371]
[1761590087858,0.49481796,1146.6,1145.2,1.3032371]
[1761590088061,0.49481796,1146.5,1145.2,1.3032371]
[1761590088258,1.004,1146.8,1145.2,1.3032371]
[1761590088560,0.49480932,1146.7,1145.2,1.3032371]
[1761590088760,0.49480932,1146.6,1145.3,1.3032371]
[1761590088960,0.49480932,1146.5,1145.3,1.3032371]
[1761590089159,1.004,1146.8,1145.3,1.3032371]
[1761590089360,0.49480932,1146.7,1145.3,1.3032371]
[1761590089663,0.49480932,1146.6,1145.4,1.3032371]
[1761590089864,0.49480932,1146.5,1145.3,1.3032371]
[1761590090164,1.004,1146.8,1145.3,1.3032371]
[1761590090364,0.49483028,1146.7,1145.3,1.3032371]
[1761590090564,0.49483028,1146.6,1145.3,1.3032371]
[1761590090764,0.49483028,1146.5,1145.2,1.3032371]
[1761590090964,1.004,1146.8,1145.2,1.3032371]
[1761590091162,0.49478898,1146.7,1145.2,1.3032371]
[1761590091469,0.49478898,1146.6,1145.2,1.3032371]
[1761590091664,0.49478898,1146.5,1145.2,1.3032371]
[1761590091862,1.004,1146.8,1145.2,1.3032371]
[1761590092061,0.49464699,1146.7,1145.2,1.3032371]
[1761590092365,0.49464699,1146.6,1145.2,1.3032371]
[1761590092565,0.49464699,1146.5,1145.2,1.3032371]
[1761590092763,1.004,1146.8,1145.2,1.3032371]
[1761590093062,0.49464587,1146.7,1145.2,1.3032371]
[1761590093267,0.49464587,1146.6,1145.2,1.3032371]
[1761590093562,0.49464587,1146.5,1145.2,1.3032371]
[1761590093765,1.004,1146.8,1145.2,1.3032371]
[1761590093965,0.49464434,1146.7,1145.2,1.3032371]
[1761590094169,0.49464434,1146.6,1145.2,1.3032371]
[1761590094364,0.49464434,1146.5,1145.1,1.3032371]
[1761590094567,1.004,1146.8,1145.1,1.3032371]
[1761590094862,0.49464467,1146.7,1145.1,1.3032371]
[1761590095067,0.49464467,1146.6,1145.1,1.3032371]
[1761590095363,0.49464467,1146.5,1145.1,1.3032371]
[1761590095564,1.004,1146.8,1145.1,1.3032371]
[1761590095762,0.49464488,1146.7,1145.0,1.3032371]
[1761590096066,0.49464488,1146.6,1145.0,1.3032371]
[1761590096267,0.49464488,1146.5,1145.0,1.3032371]
[1761590096464,1.004,1146.8,1145.0,1.3032371]
[1761590096668,0.49464528,1146.7,1145.0,1.3032371]
[1761590096968,0.49464528,1146.6,1145.0,1.3032371]
[1761590097166,0.49464528,1146.5,1145.0,1.3032371]
[1761590097364,1.004,1146.8,1145.0,1.3032371]
[1761590097570,0.49452523,1146.7,1145.0,1.3032371]
[1761590097766,0.49452523,1146.6,1145.0,1.3032371]
[1761590097964,0.49452523,1146.5,1145.0,1.3032371]
[1761590098263,1.004,1146.8,1145.0,1.3032371]
[1761590098471,0.49445719,1146.7,1145.0,1.3032371]
[1761590098765,0.49445719,1146.6,1145.0,1.3032371]
[1761590098969,0.49445719,1146.5,1145.0,1.3032371]
[1761590099169,1.004,1146.8,1145.0,1.3032371]
[1761590099368,0.49437229,1146.7,1145.0,1.3032371]
[1761590099569,0.49437229,1146.6,1145.0,1.3032371]
[1761590099868,0.49437229,1146.5,1145.0,1.3032371]
[1761590100171,1.004,1146.8,1145.0,1.3032371]
[1761590100369,0.49437732,1146.7,1145.0,1.3032371]
[1761590100567,0.49437732,1146.6,1145.0,1.3032371]
[1761590100767,0.49437732,1146.5,1145.1,1.3032371]
[1761590100965,1.004,1146.8,1144.7,0.15176393]
[1761590100966,1.004,1146.8,1145.0,1.3032371]
[1761590101166,0.49438394,1146.7,1145.0,1.3032371]
[1761590101367,0.49438394,1146.6,1145.0,1.3032371]
[1761590101567,1.004,1146.8,1145.0,1.3032371]
[1761590101568,0.49438394,1146.5,1145.0,1.3032371]
[1761590101764,1.004,1146.8,1145.0,1.3032371]
[1761590101965,0.49447369,1146.7,1145.0,1.3032371]
[1761590102168,0.49447369,1146.6,1145.0,1.3032371]
[1761590102368,0.49447369,1146.5,1145.0,1.3032371]
[1761590102571,1.004,1146.8,1145.0,1.3032371]
[1761590102772,0.49447669,1146.7,1145.0,1.3032371]
[1761590102975,0.49447669,1146.6,1145.0,1.3032371]
[1761590103174,0.49447669,1146.5,1145.0,1.3032371]
[1761590103371,1.004,1146.8,1145.0,1.3032371]
[1761590103570,0.49448145,1146.7,1145.0,1.3032371]
[1761590103771,0.49448145,1146.6,1145.0,1.3032371]
[1761590103970,1.2910066,1147.9,1144.7,0.15176393]
[1761590103971,0.64457714,1147.1,1145.4,1.3032371]
[1761590104272,0.49452826,1147.0,1145.4,1.3032371]
[1761590104574,0.49452826,1146.9,1145.4,1.3032371]
[1761590104773,0.49452826,1146.8,1145.7,1.3032371]
[1761590104971,0.64457714,1147.1,1145.7,1.3032371]
[1761590105175,0.49459438,1147.0,1145.7,1.3032371]
[1761590105476,0.49459438,1146.9,1145.8,1.3032371]
[1761590105675,0.64457714,1147.2,1145.8,1.3032371]
[1761590105874,0.49457598,1147.1,1145.8,1.3032371]
[1761590106074,0.49457598,1147.0,1145.8,1.3032371]
[1761590106372,0.49457598,1146.9,1145.8,1.3032371]
[1761590106574,0.64457714,1147.2,1145.8,1.3032371]
[1761590106877,0.49527881,1147.1,1145.8,1.3032371]
[1761590107077,0.49527881,1147.0,1145.4,1.3032371]
[1761590107276,0.83626139,1147.5,1145.4,1.3032371]
[1761590107474,0.49520632,1147.4,1145.4,1.3032371]
[1761590107675,1.58420632,1147.3,1145.4,1.3032371]